bitfinex-derivatives/quotes_BNBF0:USTF0_20250417
["timestamp","ask_amount","ask_price","bid_price","bid_amount"]
[1744879939062,0.30744189,583.25,582.16,0.31532828]
[1744879942463,0.30744189,583.25,582.16,1.12432828]
[1744879942665,0.30744189,583.25,582.17,0.31532828]
[1744879947465,0.30746105,583.24,582.18,0.31532861]
[1744879947662,0.30746105,583.25,582.17,0.31532861]
[1744879947862,0.30746105,583.24,582.18,0.31532861]
[1744879948080,0.30746105,583.25,582.17,0.31532861]
[1744879948366,0.30746105,583.24,582.18,0.31532861]
[1744879948566,0.918,583.26,582.16,0.809]
[1744879948567,0.30746105,583.25,582.17,0.31532861]
[1744879948862,0.918,583.26,582.16,0.809]
[1744879949068,0.30746736,583.25,582.17,0.315327]
[1744879950868,0.64158683,583.28,582.16,0.809]
[1744879951667,0.30746662,583.27,582.16,0.809]
[1744879952466,0.30746662,583.27,582.17,0.31532582]
[1744879953565,0.34288849,583.28,582.16,0.809]
[1744879953769,0.30746907,583.27,582.16,0.809]
[1744879954068,0.30746907,583.27,582.16,1.644]
[1744879954670,0.708,583.26,582.16,1.644]
[1744879955672,0.708,583.26,582.17,0.31532671]
[1744879956466,0.30746107,583.25,582.16,1.644]
[1744879956765,0.708,583.26,582.16,1.644]
[1744879956969,0.30746105,583.25,582.16,1.644]
[1744879957174,0.30746105,583.25,582.17,0.31533136]
[1744879958376,0.708,583.26,582.16,1.644]
[1744879959268,0.30745707,583.25,582.17,0.31532887]
[1744879961471,0.708,583.26,582.16,1.644]
[1744879961673,0.30746263,583.25,582.17,0.31532746]
[1744879964677,0.708,583.26,582.16,1.644]
[1744879964978,0.30746469,583.25,582.17,0.3153269]
[1744879967780,0.30746469,583.25,582.16,1.644]
[1744879967781,0.708,583.26,582.16,1.644]
[1744879967974,0.30744489,583.25,582.17,0.31532834]
[1744879970983,0.708,583.26,582.16,1.644]
[1744879971281,0.30744562,583.25,582.17,0.31532702]
[1744879974187,0.708,583.26,582.16,1.644]
[1744879974388,0.30745619,583.25,582.17,0.31532589]
[1744879976590,0.30745619,583.25,582.17,0.93932589]
[1744879976789,0.30745619,583.25,582.18,0.31532589]
[1744879977089,0.708,583.26,582.17,0.624]
[1744879977289,1.05090025,583.26,582.17,0.624]
[1744879977990,0.30748012,583.25,582.17,0.624]
[1744879978290,1.34960244,583.26,582.18,0.31532764]
[1744879978482,1.34960244,583.26,582.17,0.624]
[1744879980089,1.05090025,583.26,582.17,0.624]
[1744879983689,0.34290025,583.26,582.17,1.423]
[1744879987293,0.716,583.25,582.17,1.423]
[1744879990591,0.716,583.25,582.18,0.31532316]
[1744879991798,0.716,583.25,582.17,1.423]
[1744879994000,0.30747622,583.24,582.18,0.3153259]
[1744879998195,0.30747622,583.24,582.18,1.0183259]
[1744879998400,0.30747622,583.24,582.19,0.3153259]
[1744879999198,0.716,583.25,582.18,0.703]
[1744879999403,0.3074708,583.24,582.19,0.31532422]
[1744880001503,0.3074708,583.24,582.2,0.766]
[1744880001703,0.3074708,583.24,582.21,0.31532422]
[1744880008200,0.716,583.25,582.2,1.562]
[1744880017514,0.34290025,583.26,582.2,1.562]
[1744880019610,0.591,583.25,582.2,1.562]
[1744880021016,0.591,583.25,582.21,0.687]
[1744880021314,0.591,583.25,582.22,0.31528747]
[1744880021814,0.591,583.25,582.21,0.687]
[1744880022015,0.591,583.25,582.22,0.31528788]
[1744880022715,0.591,583.25,582.21,0.687]
[1744880024213,0.591,583.25,582.22,0.31530261]
[1744880025222,0.591,583.25,582.23,0.31530318]
[1744880025518,0.591,583.25,582.24,0.31530318]
[1744880025716,0.591,583.25,582.22,0.31530318]
[1744880026922,0.591,583.25,582.23,0.628]
[1744880027214,0.591,583.25,582.24,0.31530318]
[1744880028315,0.591,583.25,582.23,0.628]
[1744880028515,0.591,583.25,582.24,0.3153029]
[1744880029515,0.3074821,583.24,582.24,0.3153029]
[1744880029817,0.591,583.25,582.24,0.3153029]
[1744880030017,0.30748189,583.24,582.24,0.3153029]
[1744880030417,0.30748189,583.24,582.23,0.628]
[1744880030418,0.591,583.25,582.23,0.628]
[1744880032523,0.591,583.25,582.24,0.31530271]
[1744880035526,0.591,583.25,582.23,0.628]
[1744880040427,0.30749077,583.24,582.24,0.31530369]
[1744880040927,0.591,583.25,582.23,0.628]
[1744880041122,0.30749097,583.24,582.24,0.31530356]
[1744880043429,0.30749097,583.24,582.25,0.761]
[1744880043628,0.30749097,583.24,582.26,0.31530356]
[1744880044930,0.591,583.25,582.25,0.761]
[1744880045127,0.30748475,583.24,582.26,0.31530607]
[1744880045333,0.30748475,583.24,582.26,1.18730607]
[1744880045526,0.591,583.25,582.27,0.31530607]
[1744880045830,0.30748664,583.24,582.27,0.31530607]
[1744880046827,0.30748664,583.25,582.27,0.31530607]
[1744880047024,0.30748664,583.24,582.27,0.31530607]
[1744880047431,0.30748664,583.23,582.27,0.31530607]
[1744880047632,0.30748664,583.22,582.27,0.31530607]
[1744880047833,0.30748664,583.25,582.27,0.31530607]
[1744880048031,0.30748664,583.24,582.27,0.31530607]
[1744880048234,0.30748664,583.25,582.27,0.31530607]
[1744880048427,0.30748664,583.24,582.27,0.31530607]
[1744880048628,0.30748664,583.25,582.27,0.31530607]
[1744880048829,0.30748664,583.24,582.27,0.31530607]
[1744880049032,0.30748664,583.23,582.27,0.31530607]
[1744880049229,0.595,583.23,582.27,0.31530607]
[1744880049432,0.30748664,583.22,582.27,0.31530607]
[1744880052038,0.595,583.23,582.26,0.872]
[1744880052232,0.30747658,583.22,582.27,0.3153062]
[1744880053733,0.595,583.23,582.26,0.872]
[1744880053937,0.30748251,583.22,582.27,0.31530567]
[1744880055341,0.595,583.23,582.26,0.872]
[1744880055540,0.30748805,583.22,582.27,0.31530595]
[1744880056940,0.595,583.23,582.26,0.872]
[1744880057142,0.30749063,583.22,582.27,0.31530649]
[1744880058643,0.595,583.23,582.26,0.872]
[1744880058841,0.30747062,583.22,582.26,0.872]
[1744880059339,0.29872014,583.21,582.26,0.872]
[1744880059543,0.30747062,583.2,582.26,0.872]
[1744880059944,0.3429414,583.19,582.26,0.872]
[1744880060345,0.30743894,583.18,582.26,0.872]
[1744880060544,0.34295316,583.17,582.26,0.872]
[1744880061048,0.30741943,583.16,582.26,0.872]
[1744880061346,0.65037848,583.16,582.26,0.872]
[1744880061545,0.30741943,583.15,582.26,0.872]
[1744880062546,0.34297081,583.14,582.26,0.872]
[1744880062844,0.30741943,583.13,582.26,0.872]
[1744880065047,0.34297081,583.14,582.26,0.872]
[1744880065350,0.84641097,583.13,582.26,0.872]
[1744880065547,0.30741097,583.12,582.26,0.872]
[1744880066642,0.539,583.13,582.26,0.872]
[1744880066846,0.30740372,583.12,582.27,0.753]
[1744880069345,0.65038629,583.12,582.27,0.753]
[1744880069547,0.65039217,583.11,582.27,0.753]
[1744880069749,0.65039806,583.1,582.27,0.753]
[1744880070049,0.30739893,583.09,582.27,0.753]
[1744880073047,0.34299434,583.1,582.27,0.753]
[1744880073250,0.30746384,583.09,582.27,0.753]
[1744880079553,0.30751154,583.08,582.27,0.753]
[1744880079753,0.30751154,583.09,582.27,0.753]
[1744880080052,0.30751154,583.08,582.27,0.753]
[1744880080252,0.30751154,583.09,582.27,0.753]
[1744880081056,0.64174525,583.1,582.27,0.753]
[1744880081257,0.30751083,583.09,582.27,0.753]
[1744880081456,0.30751083,583.09,582.27,1.483]
[1744880082658,0.64174525,583.1,582.27,1.483]
[1744880082851,0.30750665,583.09,582.27,1.483]
[1744880084957,0.778,583.08,582.27,1.483]
[1744880085155,0.30750665,583.07,582.27,1.483]
[1744880085861,0.778,583.08,582.27,1.483]
[1744880086058,0.3075087,583.07,582.27,1.483]
[1744880087456,0.778,583.08,582.27,1.483]
[1744880087662,0.3075144,583.07,582.27,1.483]
[1744880095469,0.30751227,583.06,582.27,1.483]
[1744880095773,0.30751227,583.07,582.27,1.483]
[1744880096067,0.30751227,583.06,582.27,1.483]
[1744880096273,0.30751227,583.05,582.27,1.483]
[1744880096473,0.30751227,583.04,582.27,1.483]
[1744880096676,0.30751227,583.07,582.27,1.483]
[1744880096872,0.30751227,583.06,582.27,1.483]
[1744880097069,0.30749619,583.05,582.27,1.483]
[1744880097270,0.30749619,583.07,582.27,1.483]
[1744880097472,0.30749619,583.06,582.27,1.483]
[1744880097670,0.30749619,583.07,582.27,1.483]
[1744880097873,0.30749619,583.06,582.27,1.483]
[1744880098074,0.30749619,583.05,582.27,1.483]
[1744880098276,0.30749619,583.04,582.27,1.483]
[1744880098472,0.30749619,583.07,582.27,1.483]
[1744880098668,0.30749619,583.06,582.27,1.483]
[1744880098868,0.30749619,583.07,582.27,1.483]
[1744880101371,0.30737937,583.06,582.27,1.483]
[1744880101675,0.30737937,583.05,582.27,1.483]
[1744880101882,0.30737937,583.07,582.27,1.483]
[1744880102072,0.30737937,583.06,582.27,1.483]
[1744880102271,0.30737937,583.07,582.27,1.483]
[1744880102472,0.30737937,583.06,582.27,1.483]
[1744880102670,0.30737937,583.07,582.27,1.483]
[1744880103377,0.30737937,583.07,582.27,2.203]
[1744880104180,0.30737937,583.09,582.27,2.203]
[1744880104376,0.30737937,583.08,582.27,2.203]
[1744880104579,0.30737937,583.09,582.27,2.203]
[1744880104881,0.30737937,583.08,582.27,2.203]
[1744880105082,0.30737937,583.07,582.27,2.203]
[1744880105282,0.30737937,583.06,582.27,2.203]
[1744880105482,0.30737937,583.05,582.27,2.203]
[1744880105684,0.30737937,583.09,582.27,2.203]
[1744880105982,0.30737937,583.08,582.27,2.203]
[1744880106182,0.64174782,583.1,582.27,2.203]
[1744880106183,0.30737937,583.09,582.27,2.203]
[1744880106381,0.94937937,583.08,582.27,2.203]
[1744880106583,0.30737937,583.07,582.27,2.203]
[1744880107582,0.642,583.08,582.27,2.203]
[1744880107780,0.30737514,583.07,582.27,2.203]
[1744880107981,0.642,583.08,582.27,2.203]
[1744880119286,0.30737502,583.07,582.27,2.203]
[1744880119586,0.642,583.08,582.27,2.203]
[1744880119985,0.30737525,583.07,582.27,2.203]
[1744880121585,0.642,583.08,582.27,2.203]
[1744880121782,0.9850061,583.08,582.27,2.203]
[1744880122487,1.28376471,583.08,582.27,2.203]
[1744880122891,0.34301198,583.07,582.27,2.203]
[1744880125491,0.29876887,583.06,582.27,2.203]
[1744880125685,0.34302375,583.05,582.27,2.203]
[1744880127488,0.29877143,583.04,582.27,2.203]
[1744880127688,0.64180106,583.04,582.27,2.203]
[1744880130093,0.34302963,583.04,582.27,2.203]
[1744880131294,0.6417985,583.04,582.27,2.203]
[1744880132997,0.34303552,583.03,582.27,2.203]
[1744880134289,0.29878169,583.02,582.27,2.203]
[1744880134493,0.34304728,583.01,582.27,2.203]
[1744880137400,0.29867912,583.0,582.27,2.203]
[1744880137594,0.34305905,582.99,582.27,2.203]
[1744880139397,0.713,582.98,582.27,2.203]
[1744880148010,0.30720189,582.97,582.27,2.203]
[1744880150011,0.713,582.98,582.27,2.203]
[1744880152707,0.64185357,582.99,582.27,2.203]
[1744880154112,0.34305905,582.99,582.27,2.203]
[1744880154512,0.64175483,582.99,582.27,2.203]
[1744880155810,0.568,582.98,582.27,2.203]
[1744880166913,0.34305905,582.99,582.27,2.203]
[1744880170025,0.553,582.98,582.27,2.203]
[1744880181225,0.34305905,582.99,582.27,2.203]
[1744880184937,0.661,582.98,582.27,2.203]
[1744880209954,0.34305905,582.99,582.27,2.203]
[1744880213957,0.771,582.98,582.27,2.203]
[1744880238069,0.34305905,582.99,582.27,2.203]
[1744880241876,0.77,582.98,582.27,2.203]
[1744880257494,0.30729107,582.97,582.27,2.203]
[1744880257690,0.77,582.98,582.27,2.203]
[1744880257995,0.30727881,582.97,582.27,2.203]
[1744880260795,0.77,582.98,582.27,2.203]
[1744880261094,0.30728658,582.97,582.27,2.203]
[1744880262496,0.77,582.98,582.27,2.203]
[1744880262796,0.30728869,582.97,582.27,2.203]
[1744880263792,0.77,582.98,582.27,2.203]
[1744880266893,0.34305905,582.99,582.27,2.203]
[1744880269896,0.685,582.98,582.27,2.203]
[1744880283316,0.30726106,582.97,582.27,2.203]
[1744880284618,0.685,582.98,582.27,2.203]
[1744880289915,0.34305905,582.99,582.27,2.203]
[1744880293522,0.585,582.98,582.27,2.203]
[1744880315442,0.34305905,582.99,582.27,2.203]
[1744880319046,0.857,582.98,582.27,2.203]
[1744880335058,0.34305905,582.99,582.27,2.203]
[1744880338765,0.887,582.98,582.27,2.203]
[1744880355778,0.64185357,582.99,582.27,2.203]
[1744880358281,0.34305905,582.99,582.27,2.203]
[1744880359375,0.61,582.98,582.27,2.203]
[1744880360276,0.3072247,582.97,582.27,2.203]
[1744880367987,0.61,582.98,582.27,2.203]
[1744880385499,0.34305905,582.99,582.27,2.203]
[1744880387903,0.889,582.98,582.27,2.203]
[1744880403211,0.889,582.98,582.28,0.31511634]
[1744880403413,0.889,582.98,582.28,0.34347736]
[1744880404016,0.889,582.98,582.29,0.31505817]
[1744880404218,1.30696735,583.7,582.3,0.31505817]
[1744880404413,1.30696735,583.7,582.32,0.34345377]
[1744880404614,1.30696735,583.7,582.33,0.31505817]
[1744880404815,1.30696735,583.7,582.34,0.31505817]
[1744880405010,1.30696735,583.7,582.35,0.31505817]
[1744880405216,1.30696735,583.7,582.36,0.31505817]
[1744880405417,1.30696735,584.66,582.36,0.31505817]
[1744880405613,1.30696735,584.66,582.37,0.96026261]
[1744880405816,1.30696735,584.66,582.38,0.31505817]
[1744880406019,1.30696735,584.66,582.39,0.31505817]
[1744880406219,1.30696735,584.66,582.5,0.34334763]
[1744880406417,1.30696735,584.66,582.51,0.31505817]
[1744880406617,1.30696735,584.66,582.61,0.34328281]
[1744880406817,0.608,584.65,582.61,0.34328281]
[1744880407114,0.950085,584.65,582.62,1.151]
[1744880407319,0.950085,584.65,582.72,0.34321801]
[1744880407522,0.34209671,584.63,582.72,0.34321801]
[1744880407819,0.34209671,584.63,582.73,0.31463509]
[1744880408020,0.30724499,584.62,582.75,0.34320034]
[1744880408221,0.34211426,584.6,582.76,0.31463509]
[1744880408420,0.34211426,584.6,582.78,0.34318267]
[1744880408613,0.30736501,584.59,582.79,0.31463509]
[1744880408919,0.30736501,584.59,582.8,0.34317089]
[1744880409119,0.34213182,584.57,582.8,0.34317089]
[1744880409321,0.30739953,584.56,582.81,0.31481629]
[1744880409517,0.34214938,584.54,582.82,0.34315912]
[1744880409821,0.30739953,584.53,582.83,0.31481629]
[1744880410021,0.34216694,584.51,582.84,0.34314734]
[1744880410222,0.30739953,584.5,582.85,0.31481629]
[1744880410422,0.3421845,584.48,582.87,0.34312968]
[1744880410621,0.3421845,584.48,582.88,0.31481629]
[1744880410823,0.3421845,584.48,582.89,0.34311791]
[1744880411023,0.3421845,584.48,582.9,0.31477386]
[1744880411225,0.3421845,584.48,582.91,0.34310613]
[1744880411422,0.3421845,584.48,582.92,0.31477386]
[1744880411619,0.3421845,584.48,582.94,0.34308848]
[1744880411818,0.3421845,584.48,582.95,0.31477386]
[1744880412023,0.3421845,584.48,582.96,0.34307671]
[1744880412424,0.3421845,584.48,582.97,0.31477386]
[1744880412725,0.3421845,584.48,582.98,0.34306494]
[1744880412920,0.3421845,584.48,582.99,0.31477386]
[1744880413317,0.3421845,584.48,583.0,0.34305317]
[1744880413623,0.3421845,584.48,583.01,0.31477386]
[1744880413820,0.3421845,584.48,583.02,0.3430414]
[1744880414023,0.3421845,584.48,583.03,0.31477386]
[1744880414225,0.3421845,584.48,583.04,0.34302963]
[1744880414419,0.3421845,584.48,583.05,0.31477386]
[1744880414627,0.3421845,584.48,583.06,0.34301787]
[1744880414820,0.3421845,584.48,583.07,0.31477386]
[1744880415025,0.3421845,584.48,583.08,0.3430061]
[1744880415228,0.3421845,584.48,583.09,0.31477386]
[1744880415526,0.3421845,584.48,583.1,0.34299434]
[1744880415723,0.30771227,584.47,583.1,0.34299434]
[1744880415925,0.34220207,584.45,582.62,1.151]
[1744880416127,0.30771227,584.44,582.62,1.151]
[1744880416329,0.34221963,584.42,582.62,1.151]
[1744880416526,0.30771227,584.41,582.62,1.151]
[1744880416728,0.3422372,584.39,582.62,1.151]
[1744880416925,0.30771227,584.38,582.62,1.151]
[1744880417124,0.34225477,584.36,582.62,1.151]
[1744880417427,0.30771227,584.35,582.62,1.151]
[1744880417625,0.34227234,584.33,582.62,1.151]
[1744880417824,0.30771227,584.32,582.62,1.151]
[1744880418028,0.34228991,584.3,582.62,1.151]
[1744880418225,0.30771227,584.29,582.62,1.151]
[1744880418429,0.34230749,584.27,582.62,1.151]
[1744880418625,0.30771227,584.26,582.62,1.151]
[1744880418830,0.34232507,584.24,582.62,1.151]
[1744880419130,0.30771227,584.23,582.62,1.151]
[1744880419332,0.34234265,584.21,582.62,0.623]
[1744880419533,0.30771227,584.2,582.62,0.623]
[1744880419830,0.34236023,584.18,582.62,0.623]
[1744880420035,0.30771227,584.17,582.62,0.623]
[1744880420232,0.34237781,584.15,582.62,0.623]
[1744880420427,0.30771227,584.14,582.62,0.623]
[1744880420732,0.34239539,584.12,582.62,0.623]
[1744880420932,0.30747933,584.11,582.62,0.623]
[1744880421132,0.34241298,584.09,582.62,0.623]
[1744880421332,0.30747933,584.08,582.62,0.623]
[1744880421627,0.34243057,584.06,582.62,0.623]
[1744880421827,0.30747933,584.05,582.62,0.623]
[1744880422035,0.34244816,584.03,582.62,0.623]
[1744880422334,0.30747933,584.02,582.62,0.623]
[1744880422535,0.34246575,584.0,582.62,0.623]
[1744880422834,0.30747933,583.99,582.62,0.623]
[1744880423134,0.34248334,583.97,582.63,0.71]
[1744880423430,0.30747933,583.96,582.63,0.71]
[1744880423734,0.34249507,583.95,582.63,0.71]
[1744880423929,0.30747933,583.94,582.63,0.71]
[1744880424132,0.3425068,583.93,582.63,0.71]
[1744880424329,0.30747933,583.92,582.63,0.71]
[1744880424533,0.34251853,583.91,582.64,0.34326513]
[1744880424730,0.34251853,583.91,582.65,0.31502079]
[1744880424937,0.30757809,583.9,582.65,0.31502079]
[1744880425135,0.34253027,583.89,582.64,0.34326513]
[1744880426038,0.30748396,583.88,582.64,0.34326513]
[1744880426732,0.34254787,583.86,582.64,0.34326513]
[1744880426937,0.30748396,583.85,582.64,0.34326513]
[1744880427238,0.3425596,583.84,582.64,0.34326513]
[1744880428640,0.3425596,583.84,582.63,0.71]
[1744880429341,0.605,583.83,582.63,0.71]
[1744880429541,0.3425772,583.81,582.63,0.71]
[1744880429842,0.30736897,583.8,582.63,0.71]
[1744880430040,0.34259481,583.78,582.63,0.71]
[1744880430238,0.30736897,583.77,582.63,0.71]
[1744880430443,0.34261241,583.75,582.63,0.71]
[1744880430843,0.30736658,583.74,582.63,0.71]
[1744880431042,0.34263002,583.72,582.63,0.71]
[1744880431344,0.30736658,583.71,582.63,0.71]
[1744880431545,0.34264763,583.69,582.63,0.71]
[1744880431838,0.30736658,583.68,582.63,0.71]
[1744880432242,0.34265937,583.67,582.63,0.71]
[1744880432443,0.30736658,583.66,582.63,0.71]
[1744880432641,0.34267112,583.65,582.63,0.71]
[1744880432943,0.30736658,583.64,582.63,0.71]
[1744880433143,0.34268286,583.63,582.63,0.71]
[1744880433343,0.30736658,583.62,582.63,0.71]
[1744880433743,0.3426946,583.61,582.63,0.71]
[1744880433943,0.30738937,583.6,582.63,0.71]
[1744880434139,0.34270635,583.59,582.63,0.71]
[1744880434537,0.30739154,583.58,582.63,0.71]
[1744880434738,0.34271809,583.57,582.63,0.71]
[1744880435242,0.605,583.83,582.64,0.34326513]
[1744880436343,0.34257134,583.82,582.64,0.34326513]
[1744880438641,0.605,583.83,582.65,0.31502831]
[1744880438845,0.605,583.83,582.66,0.34325335]
[1744880439043,0.605,583.83,582.67,0.31502831]
[1744880439244,0.605,583.83,582.68,0.34324157]
[1744880439446,0.605,583.83,582.69,0.31502831]
[1744880439745,0.605,583.83,582.7,0.34322979]
[1744880439947,0.605,583.83,582.71,0.31502831]
[1744880440148,0.605,583.83,582.73,0.34321212]
[1744880440545,0.605,583.83,582.74,0.31486095]
[1744880440739,0.605,583.83,582.76,0.34319445]
[1744880440947,0.605,583.83,582.77,0.31486095]
[1744880441143,0.605,583.83,582.79,0.34317678]
[1744880441344,0.605,583.83,582.8,0.31486095]
[1744880441541,0.605,583.83,582.81,0.34316501]
[1744880441746,0.605,583.83,582.82,0.31486095]
[1744880442247,0.605,583.83,582.84,0.34314734]
[1744880442444,0.605,583.83,582.85,0.31486095]
[1744880442645,0.605,583.83,582.87,0.34312968]
[1744880442846,0.605,583.83,582.88,0.31486095]
[1744880443047,0.605,583.83,582.9,0.34311202]
[1744880443249,0.605,583.83,582.91,0.31486095]
[1744880443447,0.605,583.83,582.93,0.34309436]
[1744880443648,0.605,583.83,582.94,0.31486095]
[1744880443850,0.605,583.83,582.95,0.31486095]
[1744880444043,0.605,583.83,582.97,0.34307082]
[1744880444347,0.605,583.83,582.98,0.31486095]
[1744880444542,0.605,583.83,583.0,0.34305317]
[1744880444745,0.605,583.83,583.01,0.31486095]
[1744880444950,0.605,583.83,583.03,0.34303552]
[1744880445146,0.605,583.83,583.04,0.31486095]
[1744880445344,0.605,583.83,583.05,0.34302375]
[1744880445551,0.605,583.83,583.06,0.31486095]
[1744880446444,1.30696735,585.82,583.07,0.34301198]
[1744880446649,0.34147757,585.69,583.08,0.31486095]
[1744880446848,0.30721594,585.68,583.1,0.34299434]
[1744880447049,0.34155338,585.56,583.11,0.31486095]
[1744880447250,0.30721594,585.55,583.12,0.34298257]
[1744880447449,0.34162922,585.43,583.12,0.34298257]
[1744880447645,0.30721594,585.42,583.12,0.34298257]
[1744880447845,0.34169927,585.31,583.12,0.34298257]
[1744880448045,0.30721594,585.3,583.12,0.34298257]
[1744880448250,0.34176349,585.2,583.12,0.34298257]
[1744880448450,0.30721594,585.19,583.12,0.34298257]
[1744880448647,0.34182775,585.09,583.12,0.34298257]
[1744880448952,0.30721594,585.08,583.12,0.34298257]
[1744880449153,0.34184528,585.06,583.12,0.34298257]
[1744880449446,0.30721594,585.05,583.12,0.34298257]
[1744880449651,0.34186281,585.03,583.12,0.34298257]
[1744880449848,0.30721594,585.02,583.12,0.34298257]
[1744880450046,0.34188034,585.0,583.12,0.34298257]
[1744880450249,0.30728429,584.99,583.12,0.34298257]
[1744880450449,0.34189787,584.97,583.12,0.34298257]
[1744880450650,0.30728429,584.96,583.12,0.34298257]
[1744880450850,0.34191541,584.94,583.12,0.34298257]
[1744880451047,0.30728429,584.93,583.12,0.34298257]
[1744880451251,0.34193294,584.91,583.12,0.34298257]
[1744880451448,0.30728429,584.9,583.12,0.34298257]
[1744880451659,0.34195048,584.88,583.12,0.34298257]
[1744880452052,0.30728078,584.87,583.12,0.34298257]
[1744880452250,0.34196802,584.85,583.12,0.34298257]
[1744880452455,0.30728078,584.84,583.12,0.34298257]
[1744880452655,0.34198556,584.82,583.12,0.34298257]
[1744880452856,0.30728078,584.81,583.12,0.34298257]
[1744880453057,0.34200311,584.79,583.13,0.31476008]
[1744880453358,0.30728078,584.78,583.13,0.31476008]
[1744880453557,0.34202065,584.76,583.13,0.31476008]
[1744880453756,0.30728078,584.75,583.13,0.31476008]
[1744880453957,0.3420382,584.73,583.13,0.31476008]
[1744880454157,0.30728078,584.72,583.13,0.31476008]
[1744880454358,0.34205575,584.7,583.13,0.31476008]
[1744880454658,0.30728078,584.69,583.13,0.31476008]
[1744880454853,0.3420733,584.67,583.12,0.34298257]
[1744880455057,0.30728078,584.66,583.12,0.34298257]
[1744880455253,0.34209085,584.64,583.12,0.34298257]
[1744880456163,0.30745285,584.63,583.12,0.34298257]
[1744880456355,0.34210841,584.61,582.77,0.642]
[1744880456559,0.30745285,584.6,582.78,0.65808256]
[1744880456856,0.34212597,584.58,582.79,0.65807667]
[1744880457062,0.30745285,584.57,582.8,0.65807078]
[1744880457260,0.34214352,584.55,582.8,0.34317089]
[1744880457454,0.30745285,584.54,582.8,0.34317089]
[1744880457656,0.34216108,584.52,582.8,0.34317089]
[1744880457859,0.30745285,584.51,582.8,0.34317089]
[1744880458163,0.34217865,584.49,582.8,0.34317089]
[1744880458358,0.30745285,584.48,582.8,0.34317089]
[1744880458561,0.34219621,584.46,582.8,0.34317089]
[1744880458963,0.30751374,584.45,582.8,0.34317089]
[1744880459263,0.34221378,584.43,582.8,0.34317089]
[1744880459462,0.30751374,584.42,582.8,0.34317089]
[1744880459762,0.34223134,584.4,582.8,0.34317089]
[1744880459963,0.30751374,584.39,582.8,0.34317089]
[1744880460458,0.34224891,584.37,582.8,0.34317089]
[1744880460661,0.30751374,584.36,582.8,0.34317089]
[1744880460964,0.34226648,584.34,582.8,1.16417089]
[1744880461163,0.30751374,584.33,582.8,1.16417089]
[1744880461360,0.34228406,584.31,582.8,1.16417089]
[1744880461564,0.30751374,584.3,582.8,1.16417089]
[1744880461757,0.34230163,584.28,582.8,1.16417089]
[1744880461962,0.30751374,584.27,582.8,1.16417089]
[1744880462264,0.30751374,584.27,582.8,1.85417089]
[1744880462463,0.34231921,584.25,582.8,1.85417089]
[1744880462663,0.30751374,584.24,582.8,1.85417089]
[1744880462858,0.34233679,584.22,582.8,1.85417089]
[1744880463058,0.30751374,584.21,582.8,1.85417089]
[1744880463258,0.34235437,584.19,582.8,1.85417089]
[1744880463560,0.30751374,584.18,582.8,1.85417089]
[1744880463762,0.34237195,584.16,582.8,1.85417089]
[1744880463963,0.30751374,584.15,582.8,1.85417089]
[1744880464162,0.34238367,584.14,582.8,1.85417089]
[1744880464458,0.30751374,584.13,582.8,1.85417089]
[1744880465365,0.30751374,584.13,582.81,0.31493992]
[1744880467566,0.34238367,584.14,582.8,2.61517089]
[1744880467768,0.30758962,584.13,582.81,0.31501422]
[1744880468664,0.30758962,584.12,582.81,0.31501422]
[1744880468861,0.30758962,584.11,582.81,0.31501422]
[1744880469061,0.30758962,584.13,582.81,0.31501422]
[1744880469367,0.30758962,584.12,582.8,2.61517089]
[1744880469561,0.30758962,584.13,582.8,2.61517089]
[1744880469768,0.30758962,584.12,582.8,2.61517089]
[1744880469966,0.30758962,584.13,582.8,2.61517089]
[1744880470166,0.30758962,584.12,582.8,2.61517089]
[1744880470467,0.30758962,584.13,582.8,2.61517089]
[1744880470763,0.30758962,584.12,582.8,2.61517089]
[1744880470968,0.30758962,584.13,582.8,2.61517089]
[1744880471166,0.34240126,584.11,582.8,2.61517089]
[1744880471366,0.30758962,584.1,582.8,2.61517089]